Cogmind - Beta 15 @@@ ROGUE MODE // 2025.05.18 @ 23:30:24 Player: Windjigo Result: Destroyed by 3H-VLT(R) with Subdweller Shrapnel Launcher Performance ------------- Evolutions (0) 0 Regions Visited (2) 400 Robots Destroyed (20) 100 Value Destroyed (632) 632 Prototype IDs (0) 0 Alien Tech Used (0) 0 Bonus (0) 0 TOTAL SCORE: 1132 Bonus ------- None Cogmind --------- Core Integrity 0/250 Matter 92/300 Energy 86/100 System Corruption 0% Temperature Cool (0) Movement Rolling (95) Location -10/Subcaves Parts ------- > --- POWER (1) -------- (None) > --- PROPULSION (2) --- Wheel Subdweller Monowheel > --- UTILITY (2) ------ Medium Storage Unit > --- WEAPON (2) ------- Subdweller Shrapnel Launcher Subdweller Shrapnel Launcher > --- INVENTORY (10) --- Compact Wheel Subdweller Monowheel Disposable Heat Sink Scrap Shield Beam Rifle Subdweller Machine Gun Battle Cannon Mining Laser Welding Torch Peak State ------------ > --- POWER ------------ Light Nuclear Core > --- PROPULSION ------- Compact Wheel Subdweller Monowheel > --- UTILITY ---------- Medium Storage Unit Light Armor Plating > --- WEAPON ----------- Beam Rifle Battle Rifle > --- INVENTORY -------- Subdweller Power Source Wheel Seismic Detector Scrap Shield Particle Gun Light Cannon Subdweller Shrapnel Launcher Mining Laser Welding Torch [Rating: 13] Favorites ----------- Power Light Nuclear Core Engine Subdweller Power Source Power Core Light Nuclear Core Propulsion Compact Wheel Wheel Compact Wheel Utility Medium Storage Unit Device Seismic Detector Storage Medium Storage Unit Protection Light Armor Plating Weapon Light Cannon Energy Gun Beam Rifle Ballistic Gun Battle Rifle Ballistic Cannon Light Cannon Launcher Subdweller Shrapnel Launcher Special Weapon Mining Laser Build | -11 -10 -10 ------- Run | Yrd Mat Sub Slots Evolved . | . . . Power . | . . . Propulsion . | . . . Utility . | . . . Weapon . | . . . Parts Attached 31 | 7 9 15 Power 4 | 1 1 2 Engine 2 | 1 . 1 Core 2 | . 1 1 Reactor . | . . . Propulsion 8 | 2 3 3 Treads . | . . . Leg . | . . . Wheel 8 | 2 3 3 Hover . | . . . Flight . | . . . Utility 5 | 2 1 2 Device 1 | 1 . . Storage 2 | 1 1 . Processor . | . . . Hackware . | . . . Protection 2 | . . 2 Artifact . | . . . Weapon 14 | 2 4 8 Energy Gun 5 | 1 1 3 Energy Cannon . | . . . Ballistic Gun 3 | 1 . 2 Ballistic Cannon 2 | . 1 1 Launcher 2 | . . 2 Special Weapon 2 | . 2 . Impact Weapon . | . . . Slashing Weapon . | . . . Piercing Weapon . | . . . Special Melee Weapon . | . . . Unidentified Prototypes . | . . . Parts Lost 6 | . 1 5 Power 1 | . 1 . Propulsion 1 | . . 1 Utility 2 | . . 2 Weapon 2 | . . 2 Highest Loss Streak 2 | . 1 2 To Critical Strikes . | . . . Average Backups 7 | 2 7 8 Power . | . 1 . Propulsion 1 | . 1 1 Utility 2 | . 2 2 Weapon 2 | 1 1 3 Tool/Special . | . . . Unused Backups 10 | . 5 5 Power 2 | . 2 . Propulsion 1 | . 1 . Utility 5 | . 1 4 Weapon 1 | . 1 . Tool/Special 1 | . . 1 Average Slot Usage (%) 94 | . 99 89 Engine 4 | . 4 4 Core 8 | . 9 7 Wheel 27 | . 28 27 Device 6 | . 14 . Storage 14 | . 14 14 Protection 3 | . . 6 Energy Gun 12 | . 13 12 Ballistic Gun 6 | . 3 8 Ballistic Cannon 7 | . 8 6 Peak Build Rating 13 | 7 11 13 Average Rating 9 | 4 9 10 On Entrance 6 | . 7 11 Naked Turns . | . . . Heaviest Build 26 | 12 22 26 Greatest Support 36 | 26 26 36 Greatest Overweight (x) . | . . . Average Overweight (x) . | . . . Largest Inventory Capacity 10 | 8 10 10 Average Capacity 9 | 6 8 10 Most Carried 10 | 5 10 10 Average Carried 8 | 2 7 9 Final Capacity 10 | 8 10 10 Final Carried 10 | 4 10 10 Class Distribution -------------------- 81% | Scavenger-Mutant 18% | Mutant Dominant Class ---------------- Scavenger-Mutant | -10/Materials Scavenger-Mutant | -10/Subcaves Resources | -11 -10 -10 ----------- Run | Yrd Mat Sub Matter Collected 683 | 96 307 280 Remotely . | . . . Salvage Created 708 | 71 277 360 Parts 50 | 5 20 25 Haulers Intercepted 1 | . 1 . Recyclers Shooed . | . . . Parts Field Recycled . | . . . Retrieved Matter . | . . . Parts Self-Destructed 1 | . . 1 Prevented . | . . . Kills | -11 -10 -10 ------- Run | Yrd Mat Sub Combat Hostiles Destroyed 15 | . 4 11 Guns 9 | . 3 6 Cannons 4 | . 1 3 AOE 2 | . . 2 Classes Destroyed 8 | 2 3 3 Builder 2 | . 2 . Tunneler 1 | 1 . . Hauler 1 | . 1 . Recycler 1 | 1 . . Grunt 4 | . 4 . Sentry 1 | . . 1 Cobbler 1 | . . 1 Subdweller 10 | . . 10 Best Kill Streak 3 | 2 3 2 Combat Bots Only 2 | . 2 2 Max Kills in Single Turn 1 | 1 1 1 Gunslinging . | . . . Exploded 1 | . . 1 Melee . | . . . Uniques/NPCs Destroyed . | . . . Combat | -11 -10 -10 -------- Run | Yrd Mat Sub Hostile Shots Fired 83 | . 29 54 Missed 28 | . 6 22 Hits 55 | . 23 32 Projectile 55 | . 23 32 AOE 5 | . . 5 Critical Strikes 2 | . . 2 Damage Taken 1175 | . 278 897 Core 279 | . 81 198 Absorbed by Shields . | . . . Core Remaining (%) 100 | 100 . . Volleys Fired 73 | 7 28 38 Largest 2 | 2 2 2 Hottest 150 | 70 150 95 Shots Fired 138 | 14 51 73 Gun 94 | 14 36 44 Cannon 29 | . 8 21 Launcher 8 | . . 8 Special 7 | . 7 . Kinetic 70 | 7 21 42 Thermal 68 | 7 30 31 Explosive . | . . . Electromagnetic . | . . . Robot Hit Streak 20 | 6 6 20 Robot Miss Streak 4 | 3 4 2 Penetration Max . | . . . Secondary Targets . | . . . Shots Hit Robots 87 | 8 26 53 Core Hits 40 | 4 13 23 Critical Kills . | . . . Critical Parts Destroyed . | . . . Critical Strikes 1 | 1 . . Burn 1 | 1 . . Melee Attacks . | . . . Impact . | . . . Slashing . | . . . Piercing . | . . . Sneak Attacks . | . . . Combat Hostiles . | . . . Follow-up Attacks . | . . . Damage Inflicted 1624 | 82 356 1186 Guns 874 | 82 241 551 Cannons 406 | . 115 291 Explosions 344 | . . 344 Melee . | . . . Ramming . | . . . Kinetic 1029 | 32 191 806 Thermal 595 | 50 165 380 Explosive . | . . . Electromagnetic . | . . . Impact . | . . . Slashing . | . . . Piercing . | . . . Highest Corruption . | . . . Average Corruption . | . . . Corruption Purged . | . . . Corruption Blocked . | . . . Overload Shots . | . . . Overflow Damage 7 | . 7 . Projectiles 7 | . 7 . Explosions . | . . . Melee . | . . . Knockbacks 3 | . 1 2 Impact . | . . . Kinetic 3 | . 1 2 Secondary . | . . . Self-Inflicted Damage 35 | . . 35 Shots 1 | . . 1 Rammed . | . . . Targets Rammed . | . . . Kicked . | . . . Crushed . | . . . Highest Temperature 308 | 60 280 308 Average Temperature 90 | 29 94 106 Received Heat Transfer 578 | . 156 422 Siege Activations . | . . . Martial Activations . | . . . Shielding Activations . | . . . Robots Disrupted . | . . . Combat Hostiles . | . . . Robots Corrupted . | . . . Combat Hostiles . | . . . Parts Fried . | . . . Impact Corruptions . | . . . Robots Melted . | . . . Combat Hostiles . | . . . Parts Melted 4 | 1 2 1 Heat Transferred 1604 | 222 481 901 Parts Sabotaged . | . . . Parts Stolen . | . . . Parts Stripped . | . . . Power Chain Reactions . | . . . Alert | -11 -10 -10 ------- Run | Yrd Mat Sub Maximum Alert Level . | . . . Low Security (%) 100 | 100 100 . Level 1 . | . . . Level 2 . | . . . Level 3 . | . . . Level 4 . | . . . Level 5 . | . . . High Security . | . . . Max Security . | . . . Peak Influence 104 | 10 104 . Initial . | . . . Average 33 | 1 37 . Influence Increases 285 | 10 255 20 Destroy 0b10 Robot/C 100 | . 80 20 Destroy 0b10 Robot/NC 25 | 10 15 . Destroy Leader 32 | . 32 . Successful Hack 2 | . 2 . Select Force Hacks 60 | . 60 . Destroy Structure 6 | . 6 . Lose Combat Pursuer 60 | . 60 . Influence Decreases 285 | 10 197 78 Entered New Map 29 | . . 29 Time Decay 227 | 10 187 30 Lost Part 29 | . 10 19 Squads Dispatched 5 | . 5 . Investigation 3 | . 3 . Extermination . | . . . Reinforcement 2 | . 2 . Assault . | . . . Garrison . | . . . Intercept . | . . . Searches Triggered . | . . . Construction Impeded . | . . . Haulers Reinforced . | . . . Active Scanning Responses . | . . . Cargo Convoy Interrupts . | . . . Stealth | -11 -10 -10 --------- Run | Yrd Mat Sub Distress Signals 2 | . 2 . Communications Jammed . | . . . Distress Signals . | . . . Times Spotted 27 | . 12 15 Peak Tracking Total 5 | . 5 4 Tactical Retreats 1 | . 1 . Traps | -11 -10 -10 ------- Run | Yrd Mat Sub Traps Triggered . | . . . Indirectly . | . . . Trap Hack Attempts . | . . . Triggered . | . . . Disarmed . | . . . Reprogrammed . | . . . Reused . | . . . Traps Extracted . | . . . Installed . | . . . Triggered . | . . . Machines | -11 -10 -10 ---------- Run | Yrd Mat Sub Machines Disabled . | . . . Max in Single Turn . | . . . Machines Repaired . | . . . Machines Dismantled . | . . . Machines Sabotaged . | . . . Overloaded Fab Kills . | . . . Hacking | -11 -10 -10 --------- Run | Yrd Mat Sub Machines Accessed 5 | . 5 . Terminals 3 | . 3 . Fabricators . | . . . Repair Stations . | . . . Recycling Units 2 | . 2 . Scanalyzers . | . . . Garrison Access . | . . . Total Hacks 15 | . 15 . Successful 6 | . 6 . Failed 9 | . 9 . Catastrophic 2 | . 2 . Database Lockouts . | . . . Manual 11 | . 11 . Terminals 10 | . 10 . Fabricators . | . . . Repair Stations . | . . . Recycling Units 5 | . 5 . Scanalyzers . | . . . Garrison Access . | . . . Terminal Hacks 1 | . 1 . Maintenance Status 1 | . 1 . Fabricator Hacks . | . . . Repair Station Hacks . | . . . Recycling Unit Hacks 2 | . 2 . Report Inventory 2 | . 2 . Scanalyzer . | . . . Garrison Access Hacks . | . . . Unauthorized Hacks 3 | . 3 . Terminals 1 | . 1 . Botnet 1 | . 1 . Fabricators . | . . . Repair Stations . | . . . Recycling Units 2 | . 2 . Tunnel 2 | . 2 . Scanalyzers . | . . . Garrison Access . | . . . Data Cores Recovered . | . . . Used . | . . . Hacking Detections 3 | . 3 . Full Trace Events 1 | . 1 . Feedback Events . | . . . Feedback Blocked . | . . . Robot Schematics Acquired . | . . . Robots Built . | . . . Authchips . | . . . Time . | . . . Total Robot Build Rating . | . . . Part Schematics Acquired . | . . . Parts Built . | . . . Authchips . | . . . Time . | . . . Total Part Build Rating . | . . . Parts Repaired . | . . . Time . | . . . Parts Recycled . | . . . Recycled Matter . | . . . Retrieved Matter . | . . . Retrieved Components . | . . . Parts Scanalyzed . | . . . Part Schematics Acquired . | . . . Parts Damaged . | . . . Bothacking | -11 -10 -10 ------------ Run | Yrd Mat Sub Used RIF Installer . | . . . Robots Hacked . | . . . Non-combat . | . . . Combat . | . . . Robot Hacks Applied . | . . . Relay Couplers Released . | . . . Fabnet Peak Effective % . | . . . Robots Rewired . | . . . Allies Hacked . | . . . Hacks Repelled . | . . . Allies | -11 -10 -10 -------- Run | Yrd Mat Sub Total Allies . | . . . Largest Group . | . . . Highest-Rated Group . | . . . Highest-Rated Ally . | . . . Total Orders . | . . . Ally Attacks . | . . . Total Damage . | . . . Kills . | . . . Allies Corrupted . | . . . Allies Melted . | . . . Intel | -11 -10 -10 ------- Run | Yrd Mat Sub Active Infowar (turns) 599 | 15 577 7 Seismic 599 | 15 577 7 Robot Analysis Total . | . . . Derelict Logs Recovered 1 | . . 1 Drone Launches . | . . . Drone Recoveries . | . . . Exploration | -11 -10 -10 ------------- Run | Yrd Mat Sub Turns Passed 1424 | 76 577 771 Spaces Moved 1006 | 45 404 557 Core 4 | 4 . . Treads . | . . . Legs . | . . . Wheels 1002 | 41 404 557 Hover . | . . . Flight . | . . . Fastest Speed 50 | 50 90 90 Average Speed 93 | 86 90 96 Slowest Speed 105 | 90 90 105 Overloaded Moves . | . . . Propulsion Burnouts . | . . . Robots Hopped . | . . . Potential Cave-ins . | . . . Cave-ins Triggered . | . . . Exploration Rate (%) 38 | 3 72 41 Regions Visited 2 Branch Regions 1 Pre-discovered Areas 4 | . 2 2 Known Exits Taken . | . . . Unknown Exits Taken 2 | 1 1 . Scrap Searched . | . . . Spaces Dug 5 | . 5 . Terrain Destroyed 110 | . 6 104 Melee . | . . . Projectile 6 | . 6 . AOE 104 | . . 104 Terrain Rammed . | . . . Walls Destroyed . | . . . Machines Disabled . | . . . Actions | -11 -10 -10 --------- Run | Yrd Mat Sub Total 1341 | 68 557 716 Wait 168 | . 90 78 Move 1004 | 44 403 557 Hop . | . . . Pick Up 35 | 10 14 11 Fast Attach 2 | 1 . 1 Attach 10 | 6 1 3 Detach . | . . . Swap 27 | . 11 16 Drop 22 | . 10 12 Fire 73 | 7 28 38 Melee . | . . . Ram . | . . . Kick . | . . . Crush . | . . . Escape Stasis . | . . . Rewire . | . . . Trap . | . . . Miscellaneous . | . . . Route ------- -11/Scrapyard -10/Materials (discovered 4 exits: [*Mat] / [*Min x2] / [*Sub]) -10/Subcaves (discovered 1 exit: [*Mat]) History --------- Turn | Location | Event 11 | -11/Scrapyard | Discovered new exit (range 15) 77 | -11/Scrapyard | Entered Materials 277 | -10/Materials | Discovered new exit (range 11) 385 | -10/Materials | Discovered new exit (range 7) 547 | -10/Materials | Discovered new exit (range 5) 569 | -10/Materials | Build established: Scavenger-Mutant 644 | -10/Materials | Discovered new exit (range 14) 654 | -10/Materials | Entered Subcaves 655 | -10/Subcaves | Learned location of Zion (-7) 656 | -10/Subcaves | Ambushed by Subdwellers from Twisted Machinery 664 | -10/Subcaves | Ambushed by Subdweller buried in earth 664 | -10/Subcaves | Ambushed by Subdweller buried in earth 679 | -10/Subcaves | Ambushed by Subdweller buried in earth 786 | -10/Subcaves | Core integrity fell below 50% 978 | -10/Subcaves | Discovered new exit (range 13) 1242 | -10/Subcaves | Core integrity fell below 20% 1289 | -10/Subcaves | Shifting Twisted Machinery released Sub. Machine Gun 1311 | -10/Subcaves | Met a Zionite searching for "candidates" 1425 | -10/Subcaves | Destroyed by 3H-VLT(R) with Subdweller Shrapnel Launcher Last Messages --------------- 01261_ GP-GT6(O) destroyed. 01265_ Acquired 18 matter. 01267_ Dropped Particle Gun. 01268_ Acquired Battle Cannon. Sub. Machine Gun falls loose from the Twisted Machinery. 01301_ 3H-Y2C(z): "She is not going to be happy we haven't found any suitable candidates yet." 01307_ Sub. Power Source shoots sparks and powers down. 01307_ Dropped Broken Sub. Power Source. 01311_ 3H-Y2C(z): "Hey you! It's really dangerous down here, I feel that you could die at any moment. For your health and safety might I suggest a trip to Zion?" World map confirmed: -7/Zion. 01370_ DC-VPD(R) destroyed. 01373_ GE-Y5Z(R) destroyed. 01385_ Acquired 9 matter. 01408_ Acquired 13 matter. Map ----- +----------------------------------------------------+ | ?????????????????????????????????????????????????? | | ?????????????????????????????????????????????????? | | ?????????????????????????????????????????????????? | | ?????????????????????????????????????????????????? | | ?????????????????????????????????????????????????? | | ???????????????????????????????##????????????????? | | ??????????????????????????????# ##???????????????? | | ????????????????????????????## #???########?###? | | ????????????????????????????# #???# ## ## | | ????????????????????????##### #??## # | | ???????????????????????## #### # | | ???????????????????????# ### ### * | | ?????????????????????#### #### ##?# | | ?????????????????????# ## ##; #??## | | ?????????????????????# ## #??# ###### | | ???????? ???????????# #; ###??## ##???? | | ????????# ??????##### #????# ####? | | ????????# ????## #; #????# ## | | ????????# ???# #????##" "# # | | ????????? ????# [ & ##?????##### # | | ??????????# ???## & #?????????## # | | ???????????# ??## ;##?????????# ## | | ???????????# ### "# #??????????## # | | ????????????# # ###; #????????????#[ | | ????????????# ###;; ##?????????????#" | | ???????????#; ; ; @ ##??????????????## | | ???????????# ##????????????????### | | ???????????# ; #???????????????????# | | ???????????;; RR ;##???????????????????# | | ???????????; ;#????????????????????# | | ???????????# ##????????????????????# | | ???????????# ; ; ;#?????????????????????? | | ????????? ;## ###?????????????????????? | | ????????## ??##### #????????????????????????? | | ?????????#### ???????##?????????????????????????? | | ????????????# ???????????????????????????????????? | | ????????????##???????????????????????????????????? | | ?????????????????????????????????????????????????? | | ?????????????????????????????????????????????????? | | ?????????????????????????????????????????????????? | | ?????????????????????????????????????????????????? | | ?????????????????????????????????????????????????? | | ?????????????????????????????????????????????????? | | ?????????????????????????????????????????????????? | | ?????????????????????????????????????????????????? | | ?????????????????????????????????????????????????? | | ?????????????????????????????????????????????????? | | ?????????????????????????????????????????????????? | | ?????????????????????????????????????????????????? | | ?????????????????????????????????????????????????? | +----------------------------------------------------+ Best States ------------- Heat Dissipation 25 Energy Generation 15 Energy Capacity 200 Matter Stores 300 Matter Capacity 300 Sight Range 16 Terrain Scan Density 10 Armor Coverage 150 Evasion (%) 42 Item Schematics ----------------- None Robot Schematics ------------------ None Fabricated ------------ Nothing Repaired ---------- Nothing Alien Tech Used ----------------- None Achievements -------------- None Challenges ------------ None Game ------ Seed EncryptedAutogunPrototype Manual? 0 Play Time 00:19:28 Cumulative 35.5 hours Start 2025.05.18 @ 23:11:19 End 2025.05.18 @ 23:30:24 Sessions 1 Manual Loads 0 Difficulty Rogue Special Mode None Game No. 27 Rogue 27 Adventurer 0 Explorer 0 Win Type - Total 0 Types 0/0/0/0/0/0/0/0/0/0 Lore% 33 Gallery% 27 Achievement% 23 Wizard Run 0 Options --------- Layout 1 ASCII 0 Keyboard 0 Movement Mouse Keybinds 0 Fullscreen 1 Font 24/Smallcaps Map View 50x35 Zoom Use 0% Tactical HUD 1 Map Filters NONE Filters NONE Steam 1 RUN: a7fa7d96-7a1a-4fd1-b92d-30a649b71dfd